fUSD/lending_fUSD_20250616
["ID","MTS","AMOUNT","RATE_DAILY","PERIOD"]
[366178833,1750099847165,-490.0,0.00015885,2]
[366178834,1750099847188,-490.0,0.00015885,2]
[366178835,1750099847200,-490.0,0.00015885,2]
[366178836,1750099847211,-490.0,0.00015885,2]
[366178837,1750099847222,-490.0,0.00015885,2]
[366178838,1750099847234,-490.0,0.00015885,2]
[366178839,1750099847245,-1701.37,0.00015885,2]
[366178840,1750099847256,-490.0,0.00015885,2]
[366178841,1750099847267,-752.82,0.00015885,2]
[366178842,1750099847278,-530.9,0.00015885,2]
[366178843,1750099847289,-490.0,0.00015885,2]
[366178844,1750099847300,-506.46,0.00015885,2]
[366178845,1750099847311,-490.0,0.00015885,2]
[366178846,1750099847322,-2326.38,0.00015885,2]
[366178847,1750099847333,-490.0,0.00015885,2]
[366178848,1750099847343,-563.12,0.00015885,2]
[366178849,1750099847354,-490.0,0.00015885,2]
[366178850,1750099847365,-490.0,0.00015885,2]
[366178851,1750099847375,-490.0,0.00015885,2]
[366178852,1750099847386,-673.46,0.00015885,2]
[366178853,1750099847397,-1041.89,0.00015885,2]
[366178854,1750099847407,-1113.58,0.00015885,2]
[366178855,1750099847418,-2761.34,0.00015885,2]
[366178856,1750099847429,-697.72,0.00015885,2]
[366178857,1750099847440,-490.0,0.00015885,2]
[366178858,1750099847450,-490.0,0.00015885,2]
[366178859,1750099847461,-515.29,0.00015885,2]
[366178860,1750099847471,-490.0,0.00015885,2]
[366178861,1750099847482,-616.62083013,0.00015885,2]
[366178862,1750099847493,-808.92,0.00015885,2]
[366178863,1750099847504,-490.0,0.00015885,2]
[366178864,1750099847514,-759.92145944,0.00015885,2]
[366178865,1750099847664,-1664.1,0.00015885,2]
[366178866,1750099849017,-490.0,0.0001572,2]
[366178867,1750099849027,-389.85,0.0001572,2]
[366178868,1750099849039,-100.15,0.0001572,2]
[366178869,1750099849049,-490.0,0.0001572,2]
[366178870,1750099849060,-34.40748051,0.00015885,2]
[366178871,1750099849074,-493.75106005,0.00015885,2]
[366178872,1750099849084,-490.0,0.00015885,2]
[366178873,1750099849094,-490.0,0.00015885,2]
[366178874,1750099849104,-490.0,0.00015885,2]
[366178875,1750099849115,-1256.05,0.00015885,2]
[366178876,1750099849125,-490.0,0.00015885,2]
[366178877,1750099849136,-490.0,0.00015885,2]
[366178878,1750099849146,-490.0,0.00015885,2]
[366178879,1750099849156,-490.0,0.00015885,2]
[366178880,1750099849167,-490.0,0.00015885,2]
[366178881,1750099849176,-490.0,0.00015885,2]
[366178882,1750099849186,-490.0,0.00015885,2]
[366178883,1750099849196,-2099.78,0.00015885,2]
[366178884,1750099849207,-762.81,0.00015885,2]
[366178885,1750099849217,-1701.0596654,0.00015885,2]
[366178886,1750099849230,-2172.91492049,0.00015885,2]
[366178887,1750099849242,-25.09541411,0.00015885,2]
[366178888,1750099849252,-490.0,0.00015885,2]
[366178889,1750099849262,-490.0,0.00015885,2]
[366178890,1750099849272,-200.00457837,0.00015885,2]
[366178891,1750099849283,-289.99542163,0.00015885,2]
[366178892,1750099849293,-532.54,0.00015885,2]
[366178893,1750099849303,-1188.01,0.00015885,2]
[366178894,1750099849314,-3547.66097742,0.00015885,2]
[366178895,1750099849335,-355.66033065,0.00015885,2]
[366178896,1750099849360,-5733.75869193,0.00015885,2]
[366178897,1750099849370,-490.0,0.00015885,2]
[366178898,1750099849379,-490.0,0.00015885,2]
[366178899,1750099849389,-1113.92,0.00015885,2]
[366178900,1750099849399,-490.0,0.00015885,2]
[366178901,1750099849409,-490.0,0.00015885,2]
[366178902,1750099849420,-490.0,0.00015885,2]
[366178903,1750099849430,-624.28,0.00015885,2]
[366178904,1750099849440,-490.0,0.00015885,2]
[366178905,1750099849452,-490.0,0.00015885,2]
[366178906,1750099849462,-490.0,0.00015885,2]
[366178907,1750099849471,-490.0,0.00015885,2]
[366178908,1750099849481,-490.0,0.00015885,2]
[366178909,1750099849491,-852.55,0.00015885,2]
[366178910,1750099849500,-1015.03,0.00015885,2]
[366178911,1750099849510,-967.36,0.00015885,2]
[366178912,1750099849519,-490.0,0.00015885,2]
[366178913,1750099849529,-490.0,0.00015885,2]
[366178914,1750099849539,-490.0,0.00015885,2]
[366178915,1750099849548,-490.0,0.00015885,2]
[366178916,1750099849557,-2384.65,0.00015885,2]
[366178917,1750099849567,-610.85,0.00015885,2]
[366178918,1750099849577,-1367.49,0.00015885,2]
[366178919,1750099849587,-683.64,0.00015885,2]
[366178920,1750099849599,-543.94,0.00015885,2]
[366178921,1750099849609,-1494.72,0.00015885,2]
[366178922,1750099849618,-490.0,0.00015885,2]
[366178923,1750099849628,-490.0,0.00015885,2]
[366178924,1750099849637,-490.0,0.00015885,2]
[366178925,1750099849648,-490.0,0.00015885,2]
[366178926,1750099849658,-656.74,0.00015885,2]
[366178927,1750099849668,-2723.21,0.00015885,2]
[366178928,1750099849678,-492.2,0.00015885,2]
[366178929,1750099849688,-490.0,0.00015885,2]
[366178930,1750099849697,-490.0,0.00015885,2]
[366178931,1750099849707,-1059.84,0.00015885,2]
[366178932,1750099849717,-2720.63,0.00015885,2]
[366178933,1750099849727,-490.0,0.00015885,2]
[366178934,1750099849737,-490.0,0.00015885,2]
[366178935,1750099849746,-490.0,0.00015885,2]
[366178936,1750099849756,-490.0,0.00015885,2]
[366178937,1750099849765,-2600.62,0.00015885,2]
[366178938,1750099849775,-490.0,0.00015885,2]
[366178939,1750099849785,-1154.94,0.00015885,2]
[366178940,1750099849796,-490.0,0.00015885,2]
[366178941,1750099849806,-494.53,0.00015885,2]
[366178942,1750099849818,-649.36,0.00015885,2]
[366178943,1750099849827,-2025.77,0.00015885,2]
[366178944,1750099849838,-490.0,0.00015885,2]
[366178945,1750099849847,-1903.78,0.00015885,2]
[366178946,1750099849857,-490.0,0.00015885,2]
[366178947,1750099849866,-490.0,0.00015885,2]
[366178948,1750099849876,-498.45,0.00015885,2]
[366178949,1750099849886,-5074.62,0.00015885,2]
[366178950,1750099849895,-490.0,0.00015885,2]
[366178951,1750099849906,-1211.28,0.00015885,2]
[366178952,1750099849916,-659.15,0.00015885,2]
[366178953,1750099849926,-3261.09,0.00015885,2]
[366178954,1750099849936,-490.0,0.00015885,2]
[366178955,1750099849946,-490.0,0.00015885,2]
[366178956,1750099849956,-1333.84,0.00015885,2]
[366178957,1750099849967,-815.96,0.00015885,2]
[366178958,1750099849978,-490.0,0.00015885,2]
[366178959,1750099849987,-770.88,0.00015885,2]
[366178960,1750099849996,-490.0,0.00015885,2]
[366178961,1750099850007,-490.0,0.00015885,2]
[366178962,1750099850017,-233.1282377,0.00015885,2]
[366178963,1750099850030,-256.8717623,0.00015885,2]
[366178964,1750099850040,-366.1683077,0.00015885,2]
[366178965,1750099850055,-123.8316923,0.00015885,2]
[366178966,1750099850065,-490.0,0.00015885,2]
[366178967,1750099850074,-571.74,0.00015885,2]
[366178968,1750099850084,-1458.8283077,0.00015885,2]
[366178969,1750099850107,-409.1316923,0.00015885,2]
[366178970,1750099850117,-490.0,0.00015885,2]
[366178971,1750099850127,-2109.64730769,0.00015885,2]
[366178972,1750099850153,-490.0,0.0001572,2]
[366178973,1750099850163,-902.66269231,0.00015885,2]
[366178974,1750099850173,-490.0,0.00015885,2]
[366178975,1750099850184,-490.0,0.00015885,2]
[366178976,1750099850194,-490.0,0.00015885,2]
[366178977,1750099850203,-490.0,0.00015885,2]
[366178978,1750099850213,-490.0,0.00015885,2]
[366178979,1750099850223,-601.292332,0.00015885,2]
[366178980,1750099850232,-490.0,0.00015885,2]
[366178981,1750099850242,-4216.71,0.00015885,2]
[366178982,1750099850251,-1849.72,0.00015885,2]
[366178983,1750099850261,-490.0,0.00015885,2]
[366178984,1750099850271,-490.0,0.00015885,2]
[366178985,1750099850281,-772.0,0.00015885,2]
[366178986,1750099850290,-490.0,0.00015885,2]
[366178987,1750099850300,-490.0,0.00015885,2]
[366178988,1750099850310,-524.26,0.00015885,2]
[366178989,1750099850332,-800.85,0.00015885,2]
[366178990,1750099850342,-490.0,0.00015885,2]
[366178991,1750099850351,-551.5,0.00015885,2]
[366178992,1750099850363,-1000.0,0.00015885,2]
[366178993,1750099850373,-564.14,0.00015885,2]
[366178994,1750099850383,-1046.06,0.00015885,2]
[366178995,1750099850393,-490.0,0.00015885,2]
[366178996,1750099850404,-618.41,0.00015885,2]
[366178997,1750099850414,-490.0,0.00015885,2]
[366178998,1750099850424,-205.95,0.00015885,2]
[366178999,1750099850434,-490.0,0.00015886,2]
[366179000,1750099850443,-490.0,0.00015886,2]
[366179001,1750099850453,-490.0,0.00015886,2]
[366179002,1750099850463,-490.0,0.00015886,2]
[366179003,1750099850473,-490.0,0.00015886,2]
[366179004,1750099850483,-490.0,0.00015886,2]
[366179005,1750099850492,-393.69650757,0.00015886,2]
[366179006,1750099850501,-490.0,0.00015886,2]
[366179007,1750099850511,-195.86266572,0.00015886,2]
[366179008,1750099850521,-490.0,0.00015886,2]
[366179009,1750099850531,-490.0,0.00015886,2]
[366179010,1750099850541,-490.0,0.00015886,2]
[366179011,1750099850550,-490.0,0.00015886,2]
[366179012,1750099850560,-490.0,0.00015886,2]
[366179013,1750099850570,-490.0,0.00015886,2]
[366179014,1750099850580,-490.0,0.00015886,2]
[366179015,1750099850590,-490.0,0.00015886,2]
[366179016,1750099850600,-490.0,0.00015886,2]
[366179017,1750099850609,-404.99192018,0.00015886,2]
[366179018,1750099850619,-490.0,0.00015886,2]
[366179019,1750099850629,-490.0,0.00015886,2]
[366179020,1750099850639,-567.38,0.00015886,2]
[366179021,1750099850649,-490.0,0.00015886,2]
[366179022,1750099850659,-490.0,0.00015886,2]
[366179023,1750099850669,-490.0,0.00015886,2]
[366179024,1750099850679,-490.0,0.00015886,2]
[366179025,1750099850689,-490.0,0.00015886,2]
[366179026,1750099850699,-982.16,0.00015886,2]
[366179027,1750099850709,-513.0,0.00015886,2]
[366179028,1750099850719,-629.69,0.00015886,2]
[366179029,1750099850729,-490.0,0.00015886,2]
[366179030,1750099850739,-490.0,0.00015886,2]
[366179031,1750099850749,-490.0,0.00015886,2]
[366179032,1750099850759,-1124.95,0.00015886,2]
[366179033,1750099850769,-1078.66,0.00015886,2]
[366179034,1750099850779,-681.49,0.00015886,2]
[366179035,1750099850789,-796.17,0.00015886,2]
[366179036,1750099850800,-490.0,0.00015886,2]
[366179037,1750099850811,-490.0,0.00015886,2]
[366179038,1750099850820,-490.0,0.00015886,2]
[366179039,1750099850831,-800.3,0.00015886,2]
[366179040,1750099850842,-490.0,0.00015886,2]
[366179041,1750099850851,-555.81,0.00015886,2]
[366179042,1750099850861,-718.03,0.00015886,2]
[366179043,1750099850870,-490.0,0.00015886,2]
[366179044,1750099850880,-829.91,0.00015886,2]
[366179045,1750099850889,-560.35,0.00015886,2]
[366179046,1750099850899,-490.0,0.00015886,2]
[366179047,1750099850910,-490.0,0.00015886,2]
[366179048,1750099850919,-490.0,0.00015886,2]
[366179049,1750099850930,-909.62,0.00015886,2]
[366179050,1750099850940,-490.0,0.00015886,2]
[366179051,1750099850950,-490.0,0.00015886,2]
[366179052,1750099850959,-769.94,0.00015886,2]
[366179053,1750099850972,-891.45,0.00015886,2]
[366179054,1750099850982,-840.77,0.00015886,2]
[366179055,1750099850992,-490.0,0.00015886,2]
[366179056,1750099851002,-490.0,0.00015886,2]
[366179057,1750099851012,-490.0,0.00015886,2]
[366179058,1750099851023,-795.95,0.00015886,2]
[366179059,1750099851032,-490.0,0.00015886,2]
[366179060,1750099851043,-585.54,0.00015886,2]
[366179061,1750099851054,-490.0,0.00015886,2]
[366179062,1750099851064,-490.0,0.00015886,2]
[366179063,1750099851073,-398.49780168,0.00015886,2]
[366179064,1750099851083,-490.0,0.00015886,2]
[366179065,1750099851093,-642.0,0.00015886,2]
[366179066,1750099851102,-669.84,0.00015886,2]
[366179067,1750099851112,-490.0,0.00015886,2]
[366179068,1750099851121,-497.32,0.00015886,2]
[366179069,1750099851131,-463.9500569,0.00015886,2]
[366179070,1750099851147,-874.5299431,0.00015886,2]
[366179071,1750099851157,-490.0,0.00015886,2]
[366179072,1750099851167,-490.0,0.00015886,2]
[366179073,1750099851177,-33.40121995,0.00015886,2]
[366179074,1750099894039,329.38,0.000152,2]
[366179075,1750099910085,500.0,0.00014068,2]
[366179076,1750099918991,600.0,0.00015164,2]
[366179077,1750100069239,-4749.19212498,0.0001562,2]
[366179078,1750100069315,-3533.4369,0.00015621,2]
[366179079,1750100069340,-305.0,0.00015718,2]
[366179080,1750100069364,-490.0,0.00015719,2]
[366179081,1750100069388,-509.11,0.00015719,2]
[366179082,1750100069413,-490.0,0.00015719,2]
[366179083,1750100069437,-256.62727132,0.00015719,2]
[366179084,1750100069493,-233.37272868,0.00015719,2]
[366179085,1750100069517,-490.0,0.00015719,2]
[366179086,1750100069540,-490.0,0.00015719,2]
[366179087,1750100069565,-490.0,0.00015719,2]
[366179088,1750100069589,-490.0,0.00015719,2]
[366179089,1750100069613,-438.15,0.00015719,2]
[366179090,1750100069636,-538.28,0.00015719,2]
[366179091,1750100069659,-490.0,0.00015719,2]
[366179092,1750100069681,-490.0,0.00015719,2]
[366179093,1750100069703,-490.0,0.00015719,2]
[366179094,1750100069726,-490.0,0.00015719,2]
[366179095,1750100069748,-490.0,0.00015719,2]
[366179096,1750100069772,-490.0,0.00015719,2]
[366179097,1750100069794,-490.0,0.00015719,2]
[366179098,1750100069817,-490.0,0.00015719,2]
[366179099,1750100069842,-490.0,0.00015719,2]
[366179100,1750100069864,-490.0,0.00015719,2]
[366179101,1750100069887,-490.0,0.00015719,2]
[366179102,1750100069910,-490.0,0.00015719,2]
[366179103,1750100069934,-490.0,0.00015719,2]
[366179104,1750100069957,-490.0,0.00015719,2]
[366179105,1750100069982,-303.56356762,0.00015719,2]
[366179106,1750100070034,-395.67643238,0.00015719,2]
[366179107,1750100070058,-490.0,0.00015719,2]
[366179108,1750100070082,-590.1,0.00015719,2]
[366179109,1750100070105,-490.0,0.00015719,2]
[366179110,1750100070132,-490.0,0.00015719,2]
[366179111,1750100070155,-2185.93,0.00015719,2]
[366179112,1750100070178,-490.0,0.00015719,2]
[366179113,1750100070202,-490.0,0.00015719,2]
[366179114,1750100070231,-490.0,0.00015719,2]
[366179115,1750100070254,-490.0,0.00015719,2]
[366179116,1750100070277,-520.95,0.00015719,2]
[366179117,1750100070302,-1370.16,0.00015719,2]
[366179118,1750100070325,-1840.54986392,0.00015719,2]
[366179119,1750100070370,-543.35013608,0.00015719,2]
[366179120,1750100070394,-490.0,0.00015719,2]
[366179121,1750100070419,-490.0,0.00015719,2]
[366179122,1750100070443,-490.0,0.00015719,2]
[366179123,1750100070468,-595.24,0.00015719,2]
[366179124,1750100070491,-490.0,0.00015719,2]
[366179125,1750100070512,-490.0,0.00015719,2]
[366179126,1750100070535,-490.0,0.00015719,2]
[366179127,1750100070559,-490.0,0.00015719,2]
[366179128,1750100070584,-490.0,0.00015719,2]
[366179129,1750100070608,-490.0,0.00015719,2]
[366179130,1750100070634,-490.0,0.00015719,2]
[366179131,1750100070657,-744.72,0.00015719,2]
[366179132,1750100070680,-490.0,0.00015719,2]
[366179133,1750100070705,-490.0,0.00015719,2]
[366179134,1750100070730,-2570.05616022,0.00015719,2]
[366179135,1750100070787,-356.38383978,0.00015719,2]
[366179136,1750100070809,-490.0,0.00015719,2]
[366179137,1750100070833,-601.8,0.00015719,2]
[366179138,1750100070856,-643.292672,0.00015719,2]
[366179139,1750100070879,-490.0,0.00015719,2]
[366179140,1750100070901,-600.0,0.0001572,4]
[366179141,1750100070924,-300.0,0.0001572,2]
[366179142,1750100070946,-490.0,0.0001572,2]
[366179143,1750100070970,-490.0,0.0001572,2]
[366179144,1750100070992,-490.0,0.0001572,2]
[366179145,1750100071015,-490.0,0.0001572,2]
[366179146,1750100071038,-582.82,0.0001572,2]
[366179147,1750100071061,-512.91,0.0001572,2]
[366179148,1750100071086,-609.12,0.0001572,2]
[366179149,1750100071107,-490.0,0.0001572,2]
[366179150,1750100071131,-490.0,0.0001572,2]
[366179151,1750100071154,-520.1,0.0001572,2]
[366179152,1750100071177,-490.0,0.0001572,2]
[366179153,1750100071200,-490.0,0.0001572,2]
[366179154,1750100071223,-490.0,0.0001572,2]
[366179155,1750100071247,-216.93978452,0.0001572,2]
[366179156,1750100071297,-273.06021548,0.0001572,2]
[366179157,1750100071320,-490.0,0.0001572,2]
[366179158,1750100071342,-490.0,0.0001572,2]
[366179159,1750100071365,-6921.1,0.0001572,2]
[366179160,1750100071389,-1652.56,0.0001572,2]
[366179161,1750100071412,-506.64608082,0.0001572,2]
[366179162,1750100071470,-105.63391918,0.0001572,2]
[366179163,1750100071494,-900.31,0.0001572,2]
[366179164,1750100071518,-490.0,0.0001572,2]
[366179165,1750100071542,-490.0,0.0001572,2]
[366179166,1750100071567,-490.0,0.0001572,2]
[366179167,1750100071591,-490.0,0.0001572,2]
[366179168,1750100071615,-490.0,0.0001572,2]
[366179169,1750100071638,-490.0,0.0001572,2]
[366179170,1750100071661,-844.35,0.0001572,2]
[366179171,1750100071685,-1247.44,0.0001572,2]
[366179172,1750100071709,-577.21,0.0001572,2]
[366179173,1750100071733,-733.02,0.0001572,2]
[366179174,1750100071756,-284.68,0.0001572,2]
[366179175,1750100071779,-490.0,0.0001572,2]
[366179176,1750100071804,-2210.72237712,0.0001572,2]
[366179177,1750100071871,-48.93762288,0.0001572,2]
[366179178,1750100071897,-508.27,0.0001572,2]
[366179179,1750100071926,-705.76,0.0001572,2]
[366179180,1750100071951,-490.0,0.0001572,2]
[366179181,1750100071976,-509.58,0.0001572,2]
[366179182,1750100072001,-607.31,0.0001572,2]
[366179183,1750100072029,-683.8,0.0001572,2]
[366179184,1750100072059,-490.0,0.0001572,2]
[366179185,1750100072082,-490.0,0.0001572,2]
[366179186,1750100072107,-490.0,0.0001572,2]
[366179187,1750100072130,-490.0,0.0001572,2]
[366179188,1750100072152,-2688.68,0.0001572,2]
[366179189,1750100072325,-490.0,0.0001572,2]
[366179190,1750100072352,-677.73,0.0001572,2]
[366179191,1750100072377,-490.0,0.0001572,2]
[366179192,1750100072400,-436.61128123,0.0001572,2]
[366179193,1750100072424,-36.68739219,0.0001572,2]
[366179194,1750100072478,-952.09260781,0.0001572,2]
[366179195,1750100072502,-490.0,0.0001572,2]
[366179196,1750100072526,-490.0,0.0001572,2]
[366179197,1750100072550,-490.0,0.0001572,2]
[366179198,1750100072576,-490.0,0.0001572,2]
[366179199,1750100072602,-624.7,0.0001572,2]
[366179200,1750100072627,-1110.5,0.0001572,2]
[366179201,1750100072651,-1031.21,0.0001572,2]
[366179202,1750100072673,-2875.12,0.0001572,2]
[366179203,1750100072697,-490.0,0.0001572,2]
[366179204,1750100072720,-502.39,0.0001572,2]
[366179205,1750100072743,-787.35368849,0.0001572,2]
[366179206,1750100072771,-7.62631151,0.0001572,2]
[366179207,1750100072797,-599.83,0.0001572,2]
[366179208,1750100072821,-1223.27,0.0001572,2]
[366179209,1750100072845,-490.0,0.0001572,2]
[366179210,1750100072869,-490.0,0.0001572,2]
[366179211,1750100072894,-490.0,0.0001572,2]
[366179212,1750100072918,-729.82,0.0001572,2]
[366179213,1750100072940,-956.79,0.0001572,2]
[366179214,1750100072964,-1153.98,0.0001572,2]
[366179215,1750100072987,-754.22,0.0001572,2]
[366179216,1750100073010,-509.5,0.0001572,2]
[366179217,1750100073033,-927.65,0.0001572,2]
[366179218,1750100073062,-490.0,0.0001572,2]
[366179219,1750100073088,-490.0,0.0001572,2]
[366179220,1750100073111,-658.19,0.0001572,2]
[366179221,1750100073137,-362.48998479,0.0001572,2]
[366179222,1750100073200,-152.91001521,0.0001572,2]
[366179223,1750100073224,-490.0,0.0001572,2]
[366179224,1750100073250,-490.0,0.0001572,2]
[366179225,1750100073273,-490.0,0.0001572,2]
[366179226,1750100073298,-490.0,0.0001572,2]
[366179227,1750100073322,-490.0,0.0001572,2]
[366179228,1750100073347,-490.0,0.0001572,2]
[366179229,1750100073370,-513.66,0.0001572,2]
[366179230,1750100073395,-490.0,0.0001572,2]
[366179231,1750100073418,-986.25,0.0001572,2]
[366179232,1750100073442,-760.75,0.0001572,2]
[366179233,1750100073465,-1080.45,0.0001572,2]
[366179234,1750100073489,-490.0,0.0001572,2]
[366179235,1750100073513,-490.0,0.0001572,2]
[366179236,1750100073538,-499.1,0.0001572,2]
[366179237,1750100073561,-831.0,0.0001572,2]
[366179238,1750100073586,-490.0,0.0001572,2]
[366179239,1750100073610,-490.0,0.0001572,2]
[366179240,1750100073635,-119.24628109,0.0001572,2]
[366179241,1750100073671,-490.0,0.00015719,2]
[366179242,1750100073697,-5721.36371891,0.0001572,2]
[366179243,1750100073723,-1080.86,0.0001572,2]
[366179244,1750100073747,-833.82,0.0001572,2]
[366179245,1750100073773,-490.0,0.0001572,2]
[366179246,1750100073798,-490.0,0.0001572,2]
[366179247,1750100073823,-490.0,0.0001572,2]
[366179248,1750100073848,-490.0,0.0001572,2]
[366179249,1750100073873,-247.32257739,0.0001572,2]
[366179250,1750100073946,-782.29742261,0.0001572,2]
[366179251,1750100073970,-7335.34,0.0001572,2]
[366179252,1750100073993,-490.0,0.0001572,2]
[366179253,1750100074018,-1725.72887369,0.0001572,2]
[366179254,1750100074070,-890.16112631,0.0001572,2]
[366179255,1750100074099,-9423.51,0.0001572,2]
[366179256,1750100074125,-19.69516999,0.0001572,2]
[366179257,1750100074171,-765.45483001,0.0001572,2]
[366179258,1750100074195,-705.78,0.0001572,2]
[366179259,1750100074220,-1164.26,0.0001572,2]
[366179260,1750100074244,-490.0,0.0001572,2]
[366179261,1750100074268,-490.0,0.0001572,2]
[366179262,1750100074291,-625.57,0.0001572,2]
[366179263,1750100074317,-490.0,0.0001572,2]
[366179264,1750100074342,-1175.91,0.0001572,2]
[366179265,1750100074368,-598.85,0.0001572,2]
[366179266,1750100074392,-817.16,0.0001572,2]
[366179267,1750100074416,-942.19,0.0001572,2]
[366179268,1750100074440,-2068.19146629,0.0001572,2]
[366179269,1750100074499,-31.17853371,0.0001572,2]
[366179270,1750100074824,-501.08,0.0001572,2]
[366179271,1750100074849,-490.0,0.0001572,2]
[366179272,1750100074874,-490.0,0.0001572,2]
[366179273,1750100074898,-490.0,0.0001572,2]
[366179274,1750100074923,-835.17,0.0001572,2]
[366179275,1750100074947,-490.0,0.0001572,2]
[366179276,1750100074971,-769.41,0.0001572,2]
[366179277,1750100074994,-490.0,0.0001572,2]
[366179278,1750100075019,-3316.12,0.0001572,2]
[366179279,1750100075044,-490.0,0.0001572,2]
[366179280,1750100075069,-634.59,0.0001572,2]
[366179281,1750100075094,-1305.81776259,0.0001572,2]
[366179282,1750100075149,-507.60223741,0.0001572,2]
[366179283,1750100075175,-4943.58,0.0001572,2]
[366179284,1750100075202,-490.0,0.0001572,2]
[366179285,1750100075227,-490.0,0.0001572,2]
[366179286,1750100075255,-490.0,0.0001572,2]
[366179287,1750100075280,-1097.56,0.0001572,2]
[366179288,1750100075305,-490.0,0.0001572,2]
[366179289,1750100075330,-1299.4,0.0001572,2]
[366179290,1750100075356,-525.22405889,0.0001572,2]
[366179291,1750100075411,-265.42594111,0.0001572,2]
[366179292,1750100075437,-490.0,0.0001572,2]
[366179293,1750100075464,-718.5,0.0001572,2]
[366179294,1750100075492,-1015.26,0.0001572,2]
[366179295,1750100075518,-490.0,0.0001572,2]
[366179296,1750100075544,-606.06,0.0001572,2]
[366179297,1750100075571,-556.97,0.0001572,2]
[366179298,1750100075596,-490.0,0.0001572,2]
[366179299,1750100075624,-490.0,0.0001572,2]
[366179300,1750100075654,-490.0,0.0001572,2]
[366179301,1750100075680,-536.74,0.0001572,2]
[366179302,1750100075705,-490.0,0.0001572,2]
[366179303,1750100075730,-592.72093219,0.0001572,2]
[366179304,1750100075755,-490.0,0.0001572,2]
[366179305,1750100075780,-490.0,0.0001572,2]
[366179306,1750100075806,-781.3,0.0001572,2]
[366179307,1750100075832,-707.66,0.0001572,2]
[366179308,1750100075860,-632.729423,0.0001572,2]
[366179309,1750100075921,-265.970577,0.0001572,2]
[366179310,1750100075947,-1745.13,0.0001572,2]
[366179311,1750100075972,-588.5,0.0001572,2]
[366179312,1750100075997,-490.0,0.0001572,2]
[366179313,1750100076023,-490.0,0.0001572,2]
[366179314,1750100076051,-490.0,0.0001572,2]
[366179315,1750100076078,-490.0,0.0001572,2]
[366179316,1750100076106,-2989.33,0.0001572,2]
[366179317,1750100076134,-659.25,0.0001572,2]
[366179318,1750100076171,-490.0,0.0001572,2]
[366179319,1750100076200,-490.0,0.0001572,2]
[366179320,1750100076227,-630.18,0.0001572,2]
[366179321,1750100076252,-490.0,0.0001572,2]
[366179322,1750100076277,-25.0057193,0.0001572,2]
[366179323,1750100076474,-464.9942807,0.0001572,2]
[366179324,1750100076503,-1021.22,0.0001572,2]
[366179325,1750100076531,-490.0,0.0001572,2]
[366179326,1750100076557,-490.0,0.0001572,2]
[366179327,1750100076584,-490.0,0.0001572,2]
[366179328,1750100076610,-1054.02,0.0001572,2]
[366179329,1750100076635,-614.02,0.0001572,2]
[366179330,1750100076668,-1534.91,0.0001572,2]
[366179331,1750100076695,-490.0,0.0001572,2]
[366179332,1750100076722,-529.91,0.0001572,2]